Cogmind - Beta 16.1 @@@ ROGUE MODE // 2026.03.07 @ 11:38:05 Player: Ragnakor Result: Destroyed by L-31 Rogue with Katana Performance ------------- Evolutions (1) 500 Regions Visited (2) 400 Robots Destroyed (23) 115 Value Destroyed (635) 635 Prototype IDs (2) 40 Alien Tech Used (0) 0 Bonus (0) 0 TOTAL SCORE: 1690 Bonus ------- None Cogmind --------- Core Integrity 0/400 Matter 35/300 Energy 276/290 System Corruption 2% Temperature Cool (0) Movement Treading (160) Location -9/Materials Parts ------- > --- POWER (2) -------- Light Ion Engine Improved Ion Engine > --- PROPULSION (2) --- Improved Treads > --- UTILITY (3) ------ Seismic Detector > --- WEAPON (2) ------- (None) > --- INVENTORY (5) ---- Cooling System Structural Scanner Visual Processing Unit Light EM Pulse Cannon Grenade Launcher Peak State ------------ > --- POWER ------------ Light Ion Engine Light Nuclear Core > --- PROPULSION ------- Aluminum Leg Aluminum Leg > --- UTILITY ---------- Structural Scanner Visual Processing Unit > --- WEAPON ----------- Beam Cannon Grenade Launcher > --- INVENTORY -------- Ion Engine Particle Gun [Rating: 11] Favorites ----------- Power Light Ion Engine Engine Light Ion Engine Power Core Light Nuclear Core Propulsion Aluminum Leg Treads Improved Treads Leg Aluminum Leg Wheel Wheel Utility Visual Processing Unit Device Structural Scanner Storage Small Storage Unit Processor Visual Processing Unit Weapon Small Laser Energy Gun Small Laser Energy Cannon Beam Cannon Ballistic Gun Light Assault Rifle Launcher Grenade Launcher Build | -11 -10 -9 ------- Run | Yrd Mat Mat Slots Evolved 2 | . . 2 Power 1 | . . 1 Propulsion . | . . . Utility 1 | . . 1 Weapon . | . . . Parts Attached 27 | 7 8 12 Power 8 | 1 2 5 Engine 7 | 1 1 5 Core 1 | . 1 . Reactor . | . . . Propulsion 7 | 2 2 3 Treads 1 | . . 1 Leg 4 | . 2 2 Wheel 2 | 2 . . Hover . | . . . Flight . | . . . Utility 4 | 1 2 1 Device 2 | . 1 1 Storage 1 | 1 . . Processor 1 | . 1 . Hackware . | . . . Protection . | . . . Artifact . | . . . Weapon 8 | 3 2 3 Energy Gun 3 | 2 . 1 Energy Cannon 1 | . 1 . Ballistic Gun 1 | 1 . . Ballistic Cannon . | . . . Launcher 3 | . 1 2 Special Weapon . | . . . Impact Weapon . | . . . Slashing Weapon . | . . . Piercing Weapon . | . . . Special Melee Weapon . | . . . Unidentified Prototypes . | . . . Parts Lost 16 | . 4 12 Power 3 | . . 3 Propulsion 5 | . 2 3 Utility 2 | . . 2 Weapon 6 | . 2 4 Highest Loss Streak 9 | . 4 9 To Critical Strikes . | . . . Average Backups 2 | . 1 3 Power . | . . 1 Propulsion . | . . . Utility . | . . 1 Weapon 1 | . 1 1 Tool/Special . | . . . Unused Backups 4 | . . 4 Power . | . . . Propulsion . | . . . Utility 3 | . . 3 Weapon 1 | . . 1 Tool/Special . | . . . Average Slot Usage (%) 82 | . 94 69 Engine 13 | . 9 17 Core 2 | . 3 . Leg 13 | . 6 20 Wheel 10 | . 20 . Device 8 | . 7 9 Storage 3 | . 5 . Processor 7 | . 11 2 Energy Gun 11 | . 19 1 Energy Cannon 3 | . 4 2 Launcher 8 | . 3 13 Peak Build Rating 11 | 6 10 11 Average Rating 7 | 4 7 7 On Entrance 5 | . 6 10 Avg Prop Armor Cover (%) . | . . . Naked Turns 2 | . . 2 Heaviest Build 17 | 12 12 17 Greatest Support 20 | 20 20 20 Greatest Overweight (x) 5 | . 3 5 Average Overweight (x) . | . . . Largest Inventory Capacity 8 | 8 8 5 Average Capacity 5 | 6 6 5 Most Carried 5 | 1 4 5 Average Carried 2 | . 1 3 Final Capacity 8 | 8 5 5 Final Carried 5 | 1 2 5 Class Distribution -------------------- 84% | Mutant 15% | Scavenger-Mutant Dominant Class ---------------- Mutant | -10/Materials Mutant | -9/Materials Resources | -11 -10 -9 ----------- Run | Yrd Mat Mat Matter Collected 430 | 236 153 41 Remotely . | . . . Salvage Created 596 | . 480 116 Parts 44 | . 28 16 Haulers Intercepted 1 | . 1 . Recyclers Shooed 2 | . 1 1 Parts Field Recycled . | . . . Retrieved Matter . | . . . Parts Self-Destructed . | . . . Prevented . | . . . Parts Restored . | . . . Kills | -11 -10 -9 ------- Run | Yrd Mat Mat Combat Hostiles Destroyed 17 | . 10 7 Guns 4 | . 4 . Cannons 3 | . 3 . AOE 10 | . 3 7 Classes Destroyed 7 | . 3 4 Builder 1 | . . 1 Hauler 1 | . 1 . Watcher 4 | . 2 2 Swarmer 4 | . . 4 Grunt 11 | . 10 1 Brawler 1 | . . 1 Sentry 1 | . . 1 Best Kill Streak 4 | . 3 4 Combat Bots Only 4 | . 2 4 Max Kills in Single Turn 2 | . 1 2 Gunslinging . | . . . Exploded 2 | . 1 2 Melee . | . . . Uniques/NPCs Destroyed . | . . . Combat | -11 -10 -9 -------- Run | Yrd Mat Mat Hostile Shots Fired 135 | . 53 82 Missed 32 | . 14 18 Hits 103 | . 39 64 Melee 5 | . . 5 Projectile 98 | . 39 59 Critical Strikes 4 | . 1 3 Damage Taken 1714 | . 543 1171 Core 578 | . 157 421 Absorbed by Shields . | . . . Regen/Repaired (Parts) 44 | . 44 . Core Remaining (%) 68 | 100 37 . Volleys Fired 64 | . 44 20 Largest 2 | . 2 2 Hottest 125 | . 100 125 Shots Fired 110 | . 79 31 Gun 66 | . 60 6 Cannon 25 | . 15 10 Launcher 19 | . 4 15 Special . | . . . Kinetic . | . . . Thermal 91 | . 75 16 Explosive 19 | . 4 15 Electromagnetic . | . . . Robot Hit Streak 6 | . 6 6 Robot Miss Streak 2 | . 2 1 Penetration Max . | . . . Secondary Targets . | . . . Shots Hit Robots 71 | . 52 19 Core Hits 44 | . 23 21 Critical Kills . | . . . Critical Parts Destroyed . | . . . Critical Strikes . | . . . Melee Attacks . | . . . Impact . | . . . Slashing . | . . . Piercing . | . . . Sneak Attacks . | . . . Combat Hostiles . | . . . Follow-up Attacks . | . . . Damage Inflicted 1567 | . 776 791 Guns 441 | . 393 48 Cannons 319 | . 231 88 Explosions 781 | . 146 635 Melee . | . . . Ramming 26 | . 6 20 Kinetic . | . . . Thermal 760 | . 624 136 Explosive 781 | . 146 635 Electromagnetic . | . . . Impact . | . . . Slashing . | . . . Piercing . | . . . Highest Corruption 2 | . . 2 Average Corruption 2 | . . 2 Corruption Purged . | . . . Corruption Blocked . | . . . Effects 1 | . . 1 Heat Flow Errors 1 | . . 1 Overload Shots . | . . . Overflow Damage 39 | . . 39 Projectiles . | . . . Explosions 39 | . . 39 Melee . | . . . Knockbacks . | . . . Impact . | . . . Kinetic . | . . . Secondary . | . . . Self-Inflicted Damage 247 | . 3 244 Shots 7 | . . 7 Rammed 1 | . 1 . Targets Rammed 13 | . 1 12 Kicked 12 | . . 12 Crushed . | . . . Highest Temperature 573 | . 573 264 Average Temperature 147 | . 165 108 Received Heat Transfer 645 | . 303 342 Effects 12 | . 12 . Shutdowns 2 | . 2 . Interference 4 | . 4 . Matter Decay 2 | . 2 . Damage (minor) 2 | . 2 . Damage (major) 1 | . 1 . Damage (core) 1 | . 1 . Siege Activations . | . . . Martial Activations . | . . . Shielding Activations . | . . . Robots Disrupted . | . . . Combat Hostiles . | . . . Robots Corrupted . | . . . Combat Hostiles . | . . . Parts Fried . | . . . Impact Corruptions . | . . . Robots Melted . | . . . Combat Hostiles . | . . . Parts Melted 4 | . 4 . Heat Transferred 1677 | . 1381 296 Parts Sabotaged . | . . . Parts Stolen . | . . . Parts Stripped . | . . . Power Chain Reactions . | . . . Alert | -11 -10 -9 ------- Run | Yrd Mat Mat Maximum Alert Level . | . . . Low Security (%) 100 | 100 100 100 Level 1 . | . . . Level 2 . | . . . Level 3 . | . . . Level 4 . | . . . Level 5 . | . . . High Security . | . . . Max Security . | . . . Peak Influence 180 | . 179 180 Initial 61 | . . 61 Average 82 | . 64 110 Influence Increases 756 | . 396 360 Destroy 0b10 Robot/C 340 | . 200 140 Destroy 0b10 Robot/NC 30 | . 15 15 Destroy Leader 100 | . 66 34 Successful Hack 19 | . 12 7 Disable Machine 45 | . . 45 Destroy Structure 102 | . 28 74 Lose Combat Pursuer 120 | . 75 45 Influence Decreases 693 | . 249 444 Entered New Map 86 | . . 86 Time Decay 447 | . 209 238 Lost Part 160 | . 40 120 Squads Dispatched 7 | . 4 3 Investigation 2 | . 1 1 Extermination . | . . . Reinforcement 5 | . 3 2 Assault . | . . . Garrison . | . . . Intercept . | . . . Searches Triggered . | . . . Construction Impeded . | . . . Haulers Reinforced . | . . . Active Scanning Responses . | . . . Cargo Convoy Interrupts . | . . . Stealth | -11 -10 -9 --------- Run | Yrd Mat Mat Distress Signals 5 | . 3 2 Communications Jammed . | . . . Distress Signals . | . . . Times Spotted 40 | . 21 19 Peak Tracking Total 9 | . 6 9 Tactical Retreats 4 | . 3 1 Traps | -11 -10 -9 ------- Run | Yrd Mat Mat Traps Triggered 3 | . 1 2 Indirectly . | . . . Trap Hack Attempts . | . . . Triggered . | . . . Disarmed . | . . . Reprogrammed . | . . . Reused . | . . . Traps Extracted . | . . . Installed . | . . . Triggered . | . . . Machines | -11 -10 -9 ---------- Run | Yrd Mat Mat Machines Disabled 3 | . . 3 Max in Single Turn 1 | . . 1 Machines Repaired . | . . . Machines Dismantled . | . . . Machines Sabotaged . | . . . Overloaded Fab Kills . | . . . Hacking | -11 -10 -9 --------- Run | Yrd Mat Mat Machines Accessed 10 | . 5 5 Terminals 8 | . 3 5 Fabricators . | . . . Repair Stations 1 | . 1 . Recycling Units 1 | . 1 . Scanalyzers . | . . . Garrison Access . | . . . Total Hacks 28 | . 16 12 Successful 13 | . 10 3 Failed 15 | . 6 9 Catastrophic 2 | . . 2 Database Lockouts . | . . . Manual . | . . . Terminals 18 | . 6 12 Fabricators . | . . . Repair Stations 4 | . 4 . Recycling Units 6 | . 6 . Scanalyzers . | . . . Garrison Access . | . . . Terminal Hacks 6 | . 3 3 Robot Analysis 1 | . 1 . Prototype ID Bank 1 | . 1 . Alert Level 1 | . . 1 Hauler Manifests 2 | . 1 1 Registered Components 1 | . . 1 Fabricator Hacks . | . . . Repair Station Hacks 2 | . 2 . Scan Component 1 | . 1 . Repair 1 | . 1 . Recycling Unit Hacks 5 | . 5 . Recycle Component 2 | . 2 . Process 1 | . 1 . Report Inventory 1 | . 1 . Retrieve Components 1 | . 1 . Scanalyzer . | . . . Garrison Access Hacks . | . . . Unauthorized Hacks . | . . . Terminals . | . . . Fabricators . | . . . Repair Stations . | . . . Recycling Units . | . . . Scanalyzers . | . . . Garrison Access . | . . . Data Cores Recovered . | . . . Used . | . . . Hacking Detections 7 | . 3 4 Full Trace Events . | . . . Feedback Events . | . . . Feedback Blocked . | . . . Robot Schematics Acquired . | . . . Robots Built . | . . . Authchips . | . . . Time . | . . . Total Robot Build Rating . | . . . Part Schematics Acquired . | . . . Parts Built . | . . . Authchips . | . . . Time . | . . . Total Part Build Rating . | . . . Part Studies Acquired . | . . . Parts Repaired 1 | . 1 . Time 38 | . 38 . Parts Recycled 2 | . 2 . Recycled Matter 53 | . 53 . Retrieved Matter . | . . . Retrieved Components . | . . . Parts Scanalyzed . | . . . Part Schematics Acquired . | . . . Parts Damaged . | . . . Bothacking | -11 -10 -9 ------------ Run | Yrd Mat Mat Used RIF Installer . | . . . Robots Hacked . | . . . Non-combat . | . . . Combat . | . . . Robot Hacks Applied . | . . . Relay Couplers Released . | . . . Fabnet Peak Effective % . | . . . Robots Rewired . | . . . Allies Hacked . | . . . Hacks Repelled . | . . . Allies | -11 -10 -9 -------- Run | Yrd Mat Mat Total Allies . | . . . Largest Group . | . . . Highest-Rated Group . | . . . Highest-Rated Ally . | . . . Total Orders . | . . . Ally Attacks . | . . . Total Damage . | . . . Kills . | . . . Allies Corrupted . | . . . Allies Melted . | . . . Intel | -11 -10 -9 ------- Run | Yrd Mat Mat Active Infowar (turns) 815 | . 368 447 Optics 494 | . 368 126 Structural 363 | . 237 126 Seismic 321 | . . 321 Robot Analysis Total 1 | . 1 . Derelict Logs Recovered . | . . . Drone Launches . | . . . Drone Recoveries . | . . . Exploration | -11 -10 -9 ------------- Run | Yrd Mat Mat Turns Passed 1114 | 42 566 506 Spaces Moved 814 | 39 437 338 Core 8 | 1 3 4 Treads . | . . . Legs 410 | . 76 334 Wheels 396 | 38 358 . Hover . | . . . Flight . | . . . Fastest Speed 50 | 50 80 50 Average Speed 100 | 79 87 120 Slowest Speed 300 | 80 200 300 Overloaded Moves . | . . . Propulsion Burnouts . | . . . Robots Hopped . | . . . Potential Cave-ins . | . . . Cave-ins Triggered . | . . . Exploration Rate (%) 34 | 4 66 33 Regions Visited 2 Branch Regions . Pre-discovered Areas . | . . . Known Exits Taken . | . . . Unknown Exits Taken 2 | 1 1 . Scrap Searched . | . . . Spaces Dug . | . . . Terrain Destroyed 117 | . 28 89 Melee . | . . . Projectile . | . . . AOE 117 | . 28 89 Terrain Rammed . | . . . Walls Destroyed . | . . . Machines Disabled . | . . . Actions | -11 -10 -9 --------- Run | Yrd Mat Mat Total 984 | 46 538 400 Wait 46 | . 41 5 Move 812 | 38 436 338 Hop . | . . . Pick Up 8 | 1 3 4 Fast Attach 19 | 6 5 8 Attach 7 | . 3 4 Detach 5 | . 2 3 Swap 7 | 1 2 4 Drop 3 | . 1 2 Fire 64 | . 44 20 Melee . | . . . Ram 1 | . 1 . Kick 12 | . . 12 Crush . | . . . Escape Stasis . | . . . Rewire . | . . . Trap . | . . . Miscellaneous . | . . . Route ------- -11/Scrapyard -10/Materials (discovered 3 exits: *Mat x2 / [*Min]) -9/Materials (discovered 1 exit: [*Min]) History --------- Turn | Location | Event 7 | -11/Scrapyard | Discovered new exit (range 15) 43 | -11/Scrapyard | Entered Materials 74 | -10/Materials | Discovered new exit (range 10) 255 | -10/Materials | Discovered new exit (range 18) 307 | -10/Materials | Build established: Mutant 400 | -10/Materials | Discovered new exit (range 8) 458 | -10/Materials | Core integrity fell below 50% 503 | -10/Materials | Lost 4 parts (2n2w) 534 | -10/Materials | Repaired Lgt. Nuclear Core 609 | -10/Materials | Entered another Materials area 609 | -9/Materials | Evolved 2 slots: Power x1, Utility x1 750 | -9/Materials | Core integrity fell below 50% 777 | -9/Materials | Core integrity fell below 20% 798 | -9/Materials | Lost 9 parts (2p2n2u3w) 949 | -9/Materials | Discovered new exit (range 12) 1115 | -9/Materials | Destroyed by L-31 Rogue with Katana Last Messages --------------- 01083_ Critical hit (Burn: +37). 01089_ Triggered Alarm Trap. 01089_ An alarm sounds. 01089_ ALERT: Alarm triggered, dispatching investigation squad. 01093_ Kicked A-02 Transporter out of the way. 01096_ Kicked A-02 Transporter. 01100_ Kicked Y-45 Defender. 01101_ Kicked Y-45 Defender out of the way. 01102_ Kicked Y-45 Defender. 01104_ Kicked Y-45 Defender out of the way. 01104_ O-16 Technician uses terminal to summon reinforcements. 01104_ ALERT: Hostiles spotted, dispatching reinforcements to Terminal M012. 01104_ O-16 Technician locks terminal. 01105_ Kicked Y-45 Defender. 01107_ Grenade Launcher destroyed. 01114_ Acquired Imp. Treads. 01115_ Aluminum Leg destroyed. Map ----- +----------------------------------------------------+ | ????????????????????# #??????# # """ #???## | | ????????????????????# #??????# """ # #????? | | ????????????????????# #??????# "T" # """ #????? | | ????????????????????# #??????# # """ #????? | | ????????????????????# #??????# ] # """ #????? | | ????????????????????# #??????# # ? #????? | | ?????????? ####### ##########+### ###????? | | ????????? #???? | | ?????????? T +???? | | ????????? #???? | | ????????? ###+######### ######## # ## ##+#???? | | ?????????? ??? ????????# #???????### ? ?????? | | ??????????????# ?????????# #?????????? ""? #???? | | ??????????????# ??????????# #??????????? """?????? | | ??????????????#???????????# #????????????"""?????? | | ??????????????????????????# #????????????? ?????? | | ??????????????????????????# #??????????????"?????? | | ??????????????????????????# #????????????????????? | | ??????????? ############# #????????????????????? | | ?????????? #????????????????????? | | ???????????T +????????????????????? | | ?????????? Y #????????????????????? | | ????????????? # #/####????????????????????? | | ??????????????# ?# #?????????????????????? | | ??????????????# ??#l #?????????????????????? | | ??????????????# ???# @=#?????????????????????? | | ??????????????# ????# ==#?????????????????????? | | ??????????????? ?????# #?????????????????????? | | ???????????????? ??????# ! #?????????????????????? | | ????????[??????????????# #?????????????????????? | | ???????????????????????###+#?????????????????????? | | ?????????????????????????????????????????????????? | | ?????????????????????????????????????????????????? | | ?????????????????????????????????????????????????? | | ?????????????????????????????????????????????????? | | ?????????????????????????????????????????????????? | | ?????????????????????????????????????????????????? | | ???????????????????????????????????????=????????? | | ???????????????????????????????????????????????? | | ?????????????????????????????????????????? + ???" | | ?????????????????????????????????????????? # ??"" | | ?????????????????????????????????????????? # ??"" | | ?????????????????????????????????????????? # ? | | ?????????????????????????????????????????? # ? | | ?????????????????????????????????????????? # """ | | ?????????????????????????????????????????? # """ | | ??????????????????????[???????????????????## """ | | ??????????????????????????????????????????## | | ??????????????????????????????????????????## | | ??????????????????????????????????????????## | +----------------------------------------------------+ Best States ------------- Heat Dissipation 28 Energy Generation 19 Energy Capacity 290 Matter Stores 300 Matter Capacity 300 Sight Range 18 Terrain Scan Density 10 Evasion (%) 55 Item Schematics ----------------- None Robot Schematics ------------------ None Fabricated ------------ Nothing Repaired ---------- Lgt. Nuclear Core | 12% | -10/Materials Studied --------- None Alien Tech Used ----------------- None Achievements -------------- None Challenges ------------ None Game ------ Seed ThermalCombatNullifier Manual? 0 Play Time 00:16:43 Cumulative 7.0 hours Start 2026.03.07 @ 11:17:46 End 2026.03.07 @ 11:38:05 Sessions 1 Manual Loads 0 Difficulty Rogue Special Mode None Game No. 12 Rogue 12 Adventurer 0 Explorer 0 Win Type - Total 0 Types 0/0/0/0/0/0/0/0/0/0 Lore% 14 Gallery% 11 Achievement% 11 Wizard Run 0 Options --------- Layout 1 ASCII 0 Keyboard 0 Movement Numpad Keybinds 0 Fullscreen 1 Font 24/Smallcaps Map View 50x35 Zoom Use 0% Tactical HUD 1 Map Filters NONE Filters NONE Steam 1 RUN: 75dcc26a-6957-4ec3-aa64-016c7fbb99f5